[Event "Titled Tuesday Blitz March 14 Early 2023"]
[White "Kopczynski, Michal"]
[Black "Klepikov, Nikita"]
[WhiteFideId "1124200"]
[BlackFideId "24145220"]
[WhiteElo "2212"]
[BlackElo "2025"]
[Result "0-1"]
[Round "08"]
[TimeControl "180+2"]
[Date "2023.03.14"]
[WhiteClock "0:00:44"]
[BlackClock "0:00:10"]

1. e4 {[%clk 0:03:00]}  c5 {[%clk 0:02:59]} 2. d4 {[%clk 0:02:59]}  cxd4 {[%clk 0:02:59]} 3. c3 {[%clk 0:03:00]}  dxc3 {[%clk 0:02:59]} 4. Nxc3 {[%clk 0:03:01]}  Nc6 {[%clk 0:02:59]} 5. f4 {[%clk 0:03:02]}  g6 {[%clk 0:02:59]} 6. Nf3 {[%clk 0:03:02]}  Bg7 {[%clk 0:02:59]} 7. Bc4 {[%clk 0:03:03]}  d6 {[%clk 0:02:55]} 8. O-O {[%clk 0:03:02]}  Nh6 {[%clk 0:02:36]} 9. Kh1 {[%clk 0:03:02]}  O-O {[%clk 0:02:36]} 10. Qe1 {[%clk 0:03:03]}  Kh8 {[%clk 0:02:16]} 11. f5 {[%clk 0:02:58]}  e6 {[%clk 0:01:52]} 12. Ng5 {[%clk 0:02:27]}  exf5 {[%clk 0:01:40]} 13. Qh4 {[%clk 0:02:16]}  Ne5 {[%clk 0:01:32]} 14. Bb3 {[%clk 0:02:14]}  f6 {[%clk 0:01:01]} 15. Nh3 {[%clk 0:01:55]}  g5 {[%clk 0:00:58]} 16. Nxg5 {[%clk 0:01:51]}  fxg5 {[%clk 0:00:58]} 17. Bxg5 {[%clk 0:01:52]}  Bf6 {[%clk 0:00:58]} 18. Bxf6+ {[%clk 0:01:29]}  Qxf6 {[%clk 0:00:58]} 19. Qh3 {[%clk 0:01:30]}  f4 {[%clk 0:00:55]} 20. Qh5 {[%clk 0:01:26]}  Bg4 {[%clk 0:00:53]} 21. Nd5 {[%clk 0:01:16]}  Bxh5 {[%clk 0:00:53]} 22. Nxf6 {[%clk 0:01:16]}  Rxf6 {[%clk 0:00:54]} 23. Rac1 {[%clk 0:01:16]}  Nc6 {[%clk 0:00:37]} 24. Bd5 {[%clk 0:01:14]}  Rc8 {[%clk 0:00:27]} 25. b4 {[%clk 0:01:12]}  a6 {[%clk 0:00:27]} 26. a4 {[%clk 0:01:12]}  Re8 {[%clk 0:00:22]} 27. b5 {[%clk 0:01:11]}  axb5 {[%clk 0:00:22]} 28. axb5 {[%clk 0:01:11]}  Nd4 {[%clk 0:00:15]} 29. Bxb7 {[%clk 0:01:08]}  Rb8 {[%clk 0:00:15]} 30. Bc6 {[%clk 0:01:03]}  Nxc6 {[%clk 0:00:12]} 31. bxc6 {[%clk 0:01:04]}  Rc8 {[%clk 0:00:12]} 32. Rc3 {[%clk 0:00:56]}  Ng4 {[%clk 0:00:11]} 33. h3 {[%clk 0:00:54]}  Ne5 {[%clk 0:00:10]} 34. Rfc1 {[%clk 0:00:49]}  Rc7 {[%clk 0:00:08]} 35. Kg1 {[%clk 0:00:48]}  Be8 {[%clk 0:00:08]} 36. Rb1 {[%clk 0:00:44]}  Bxc6 {[%clk 0:00:09]} 37. Rb8+ {[%clk 0:00:44]}  Kg7 {[%clk 0:00:09]} 38. Rb6 {[%clk 0:00:43]}  Ra7 {[%clk 0:00:05]} 39. Rbxc6 {[%clk 0:00:41]}  Nxc6 {[%clk 0:00:05]} 40. Rxc6 {[%clk 0:00:41]}  Re7 {[%clk 0:00:05]} 41. Rc4 {[%clk 0:00:41]}  Rfe6 {[%clk 0:00:05]} 42. Rd4 {[%clk 0:00:41]}  Rxe4 {[%clk 0:00:05]} 43. Rxd6 {[%clk 0:00:41]}  R7e6 {[%clk 0:00:04]} 44. Rd7+ {[%clk 0:00:41]}  Kg6 {[%clk 0:00:05]} 45. Rd8 {[%clk 0:00:41]}  Re3 {[%clk 0:00:05]} 46. Kf2 {[%clk 0:00:40]}  Ra3 {[%clk 0:00:04]} 47. Rg8+ {[%clk 0:00:39]}  Kf7 {[%clk 0:00:04]} 48. Rh8 {[%clk 0:00:40]}  Kg7 {[%clk 0:00:05]} 49. Rb8 {[%clk 0:00:39]}  Rc6 {[%clk 0:00:04]} 50. Rb7+ {[%clk 0:00:40]}  Kg6 {[%clk 0:00:04]} 51. Rb4 {[%clk 0:00:39]}  Rc2+ {[%clk 0:00:04]} 52. Kg1 {[%clk 0:00:39]}  Ra1+ {[%clk 0:00:04]} 53. Kh2 {[%clk 0:00:38]}  f3 {[%clk 0:00:05]} 54. Rg4+ {[%clk 0:00:37]}  Kh5 {[%clk 0:00:05]} 55. Rg7 {[%clk 0:00:34]}  Rxg2+ {[%clk 0:00:06]} 56. Rxg2 {[%clk 0:00:32]}  fxg2 {[%clk 0:00:06]} 57. Kxg2 {[%clk 0:00:33]}  Kh4 {[%clk 0:00:07]} 58. Kh2 {[%clk 0:00:33]}  Ra3 {[%clk 0:00:07]} 59. Kg2 {[%clk 0:00:34]}  Rxh3 {[%clk 0:00:07]} 60. Kg1 {[%clk 0:00:34]}  Kg3 {[%clk 0:00:06]} 61. Kf1 {[%clk 0:00:34]}  Rh1+ {[%clk 0:00:06]} 62. Ke2 {[%clk 0:00:35]}  Rg1 {[%clk 0:00:06]} 63. Ke3 {[%clk 0:00:36]}  h5 {[%clk 0:00:05]} 64. Ke4 {[%clk 0:00:37]}  h4 {[%clk 0:00:06]} 65. Kf5 {[%clk 0:00:38]}  h3 {[%clk 0:00:06]} 66. Ke6 {[%clk 0:00:39]}  h2 {[%clk 0:00:07]} 67. Ke5 {[%clk 0:00:39]}  h1=Q {[%clk 0:00:08]} 68. Kd6 {[%clk 0:00:40]}  Qh4 {[%clk 0:00:08]} 69. Kc5 {[%clk 0:00:41]}  Kf2 {[%clk 0:00:08]} 70. Kd5 {[%clk 0:00:41]}  Rg5+ {[%clk 0:00:09]} 71. Ke6 {[%clk 0:00:42]}  Qh6+ {[%clk 0:00:09]} 72. Kd7 {[%clk 0:00:43]}  Rg7+ {[%clk 0:00:10]} 73. Ke8 {[%clk 0:00:44]}  Qh8# {[%clk 0:00:10]} 0-1


[Site "https://www.chess.com"]

[Event "Titled Tuesday Blitz March 14 Early 2023"]
[White "Shubenkova, Veronika"]
[Black "Horak, Martin"]
[WhiteFideId "44124040"]
[BlackFideId "367095"]
[WhiteElo "2027"]
[BlackElo "2091"]
[Result "0-1"]
[Round "08"]
[TimeControl "180+2"]
[Date "2023.03.14"]
[WhiteClock "0:00:12"]
[BlackClock "0:00:03"]

1. e4 {[%clk 0:03:00]}  c5 {[%clk 0:02:59]} 2. Nc3 {[%clk 0:03:00]}  Nc6 {[%clk 0:02:59]} 3. g3 {[%clk 0:03:01]}  g6 {[%clk 0:02:59]} 4. Bg2 {[%clk 0:03:01]}  Bg7 {[%clk 0:02:59]} 5. d3 {[%clk 0:03:02]}  d6 {[%clk 0:02:58]} 6. f4 {[%clk 0:03:02]}  Rb8 {[%clk 0:02:58]} 7. Nf3 {[%clk 0:03:02]}  b5 {[%clk 0:02:58]} 8. Rb1 {[%clk 0:03:02]}  b4 {[%clk 0:02:58]} 9. Ne2 {[%clk 0:03:02]}  Nd4 {[%clk 0:02:57]} 10. Be3 {[%clk 0:03:01]}  e6 {[%clk 0:02:56]} 11. Nexd4 {[%clk 0:03:00]}  cxd4 {[%clk 0:02:55]} 12. Bxd4 {[%clk 0:03:01]}  Bxd4 {[%clk 0:02:49]} 13. Nxd4 {[%clk 0:03:01]}  Qb6 {[%clk 0:02:49]} 14. Nf3 {[%clk 0:03:01]}  Ne7 {[%clk 0:02:45]} 15. Qe2 {[%clk 0:03:01]}  O-O {[%clk 0:02:45]} 16. Qf2 {[%clk 0:03:01]}  Qa5 {[%clk 0:02:44]} 17. O-O {[%clk 0:02:55]}  Qxa2 {[%clk 0:02:42]} 18. b3 {[%clk 0:02:43]}  Nc6 {[%clk 0:02:25]} 19. Nd4 {[%clk 0:02:20]}  Nxd4 {[%clk 0:01:21]} 20. Qxd4 {[%clk 0:02:20]}  Qa6 {[%clk 0:01:21]} 21. Ra1 {[%clk 0:02:13]}  Qb6 {[%clk 0:01:20]} 22. Qxb6 {[%clk 0:02:13]}  Rxb6 {[%clk 0:01:19]} 23. Rxa7 {[%clk 0:02:12]}  Rc6 {[%clk 0:01:19]} 24. Ra2 {[%clk 0:02:08]}  Bd7 {[%clk 0:01:14]} 25. Rf2 {[%clk 0:02:07]}  e5 {[%clk 0:01:13]} 26. Kf1 {[%clk 0:02:06]}  Rfc8 {[%clk 0:01:12]} 27. Ke1 {[%clk 0:02:04]}  Be6 {[%clk 0:01:08]} 28. f5 {[%clk 0:02:02]}  Bd7 {[%clk 0:01:07]} 29. g4 {[%clk 0:02:01]}  f6 {[%clk 0:01:05]} 30. Kd1 {[%clk 0:02:01]}  g5 {[%clk 0:01:05]} 31. Ra7 {[%clk 0:01:57]}  Be8 {[%clk 0:01:01]} 32. Rb7 {[%clk 0:01:56]}  Ra6 {[%clk 0:00:48]} 33. Rxb4 {[%clk 0:01:56]}  Ra1+ {[%clk 0:00:47]} 34. Kd2 {[%clk 0:01:56]}  Bf7 {[%clk 0:00:37]} 35. Rf1 {[%clk 0:01:36]}  Ra2 {[%clk 0:00:32]} 36. Rc1 {[%clk 0:01:36]}  Rb2 {[%clk 0:00:32]} 37. Kd1 {[%clk 0:01:30]}  Rc3 {[%clk 0:00:20]} 38. Bf1 {[%clk 0:01:27]}  Rc7 {[%clk 0:00:19]} 39. h3 {[%clk 0:01:26]}  Kg7 {[%clk 0:00:19]} 40. c4 {[%clk 0:01:24]}  Ra7 {[%clk 0:00:16]} 41. Ra4 {[%clk 0:01:24]}  Rb7 {[%clk 0:00:16]} 42. Rc3 {[%clk 0:01:22]}  Rb1+ {[%clk 0:00:15]} 43. Rc1 {[%clk 0:01:20]}  R1xb3 {[%clk 0:00:16]} 44. Ra6 {[%clk 0:01:17]}  Rb2 {[%clk 0:00:14]} 45. Be2 {[%clk 0:01:06]}  Be8 {[%clk 0:00:07]} 46. Rxd6 {[%clk 0:01:02]}  Ra2 {[%clk 0:00:07]} 47. Ke1 {[%clk 0:00:54]}  Rbb2 {[%clk 0:00:07]} 48. Bf1 {[%clk 0:00:54]}  Rh2 {[%clk 0:00:04]} 49. c5 {[%clk 0:00:49]}  Ba4 {[%clk 0:00:02]} 50. c6 {[%clk 0:00:43]}  Rhc2 {[%clk 0:00:01]} 51. Rxc2 {[%clk 0:00:38]}  Rxc2 {[%clk 0:00:02]} 52. d4 {[%clk 0:00:30]}  exd4 {[%clk 0:00:01]} 53. Rd7+ {[%clk 0:00:31]}  Kg8 {[%clk 0:00:01]} 54. Rxd4 {[%clk 0:00:31]}  Bxc6 {[%clk 0:00:01]} 55. Bd3 {[%clk 0:00:31]}  Rc5 {[%clk 0:00:01]} 56. Ke2 {[%clk 0:00:30]}  Kg7 {[%clk 0:00:02]} 57. Ke3 {[%clk 0:00:30]}  Re5 {[%clk 0:00:02]} 58. Rd6 {[%clk 0:00:30]}  Be8 {[%clk 0:00:03]} 59. Kd4 {[%clk 0:00:29]}  Re7 {[%clk 0:00:03]} 60. Kc5 {[%clk 0:00:26]}  Bf7 {[%clk 0:00:03]} 61. Kd4 {[%clk 0:00:24]}  Be8 {[%clk 0:00:04]} 62. Ke3 {[%clk 0:00:24]}  Bf7 {[%clk 0:00:04]} 63. Be2 {[%clk 0:00:24]}  Be8 {[%clk 0:00:04]} 64. Bf3 {[%clk 0:00:24]}  Bf7 {[%clk 0:00:04]} 65. Kf2 {[%clk 0:00:24]}  Be8 {[%clk 0:00:05]} 66. Kg3 {[%clk 0:00:24]}  Bf7 {[%clk 0:00:05]} 67. h4 {[%clk 0:00:24]}  h6 {[%clk 0:00:06]} 68. hxg5 {[%clk 0:00:25]}  hxg5 {[%clk 0:00:06]} 69. Kf2 {[%clk 0:00:25]}  Be8 {[%clk 0:00:06]} 70. Be2 {[%clk 0:00:25]}  Bf7 {[%clk 0:00:07]} 71. Ke3 {[%clk 0:00:24]}  Be8 {[%clk 0:00:07]} 72. Bc4 {[%clk 0:00:25]}  Ba4 {[%clk 0:00:07]} 73. Rd8 {[%clk 0:00:21]}  Bc2 {[%clk 0:00:06]} 74. Rg8+ {[%clk 0:00:20]}  Kh7 {[%clk 0:00:07]} 75. Rg6 {[%clk 0:00:20]}  Rxe4+ {[%clk 0:00:06]} 76. Kd2 {[%clk 0:00:20]}  Rxc4 {[%clk 0:00:06]} 77. Rxf6 {[%clk 0:00:20]}  Be4 {[%clk 0:00:05]} 78. Rg6 {[%clk 0:00:20]}  Bf3 {[%clk 0:00:06]} 79. Rxg5 {[%clk 0:00:20]}  Bxg4 {[%clk 0:00:06]} 80. f6 {[%clk 0:00:20]}  Be6 {[%clk 0:00:05]} 81. Re5 {[%clk 0:00:20]}  Bf7 {[%clk 0:00:04]} 82. Kd3 {[%clk 0:00:21]}  Rf4 {[%clk 0:00:04]} 83. Re7 {[%clk 0:00:19]}  Kg6 {[%clk 0:00:04]} 84. Ke3 {[%clk 0:00:18]}  Rxf6 {[%clk 0:00:04]} 85. Ra7 {[%clk 0:00:18]}  Be6 {[%clk 0:00:04]} 86. Kd4 {[%clk 0:00:19]}  Kf5 {[%clk 0:00:03]} 87. Ra5+ {[%clk 0:00:18]}  Kf4 {[%clk 0:00:04]} 88. Ra6 {[%clk 0:00:18]}  Rg6 {[%clk 0:00:03]} 89. Rb6 {[%clk 0:00:17]}  Kf5 {[%clk 0:00:03]} 90. Rb5+ {[%clk 0:00:16]}  Kf6 {[%clk 0:00:04]} 91. Rb6 {[%clk 0:00:17]}  Rg4+ {[%clk 0:00:04]} 92. Kc5 {[%clk 0:00:17]}  Ke5 {[%clk 0:00:04]} 93. Rb1 {[%clk 0:00:17]}  Rc4+ {[%clk 0:00:04]} 94. Kb6 {[%clk 0:00:16]}  Bd5 {[%clk 0:00:03]} 95. Kb5 {[%clk 0:00:13]}  Kd6 {[%clk 0:00:03]} 96. Rd1 {[%clk 0:00:14]}  Rc8 {[%clk 0:00:03]} 97. Rd4 {[%clk 0:00:11]}  Rb8+ {[%clk 0:00:03]} 98. Ka5 {[%clk 0:00:12]}  Kc5 {[%clk 0:00:03]} 0-1


[Site "https://www.chess.com"]

[Event "Titled Tuesday Blitz March 14 Early 2023"]
[White "Martic, Ivan"]
[Black "Lesbekova, Assel"]
[WhiteFideId "929301"]
[BlackFideId "13713248"]
[WhiteElo "2360"]
[BlackElo "1799"]
[Result "1-0"]
[Round "08"]
[TimeControl "180+2"]
[Date "2023.03.14"]
[WhiteClock "0:00:45"]
[BlackClock "0:00:14"]

1. d4 {[%clk 0:03:00]}  Nf6 {[%clk 0:02:59]} 2. Bg5 {[%clk 0:02:59]}  e6 {[%clk 0:02:57]} 3. Nd2 {[%clk 0:02:56]}  d5 {[%clk 0:02:57]} 4. e3 {[%clk 0:02:56]}  Be7 {[%clk 0:02:57]} 5. c3 {[%clk 0:02:53]}  c5 {[%clk 0:02:57]} 6. f4 {[%clk 0:02:53]}  b6 {[%clk 0:02:55]} 7. Ngf3 {[%clk 0:02:52]}  O-O {[%clk 0:02:51]} 8. Ne5 {[%clk 0:02:49]}  Ne4 {[%clk 0:02:45]} 9. Nxe4 {[%clk 0:02:47]}  dxe4 {[%clk 0:02:44]} 10. Bxe7 {[%clk 0:02:45]}  Qxe7 {[%clk 0:02:45]} 11. Be2 {[%clk 0:02:44]}  Bb7 {[%clk 0:02:39]} 12. O-O {[%clk 0:02:43]}  f6 {[%clk 0:02:39]} 13. Ng4 {[%clk 0:02:40]}  Nd7 {[%clk 0:02:33]} 14. Bb5 {[%clk 0:02:29]}  Rad8 {[%clk 0:02:24]} 15. a4 {[%clk 0:02:27]}  Nb8 {[%clk 0:02:19]} 16. Bc4 {[%clk 0:02:20]}  a6 {[%clk 0:02:08]} 17. Qb3 {[%clk 0:02:20]}  Rd6 {[%clk 0:02:08]} 18. f5 {[%clk 0:02:18]}  Bd5 {[%clk 0:02:04]} 19. Rf4 {[%clk 0:01:54]}  Kh8 {[%clk 0:01:53]} 20. Raf1 {[%clk 0:01:34]}  Nc6 {[%clk 0:01:08]} 21. Bxd5 {[%clk 0:01:31]}  exd5 {[%clk 0:01:05]} 22. Kh1 {[%clk 0:01:22]}  Na5 {[%clk 0:00:56]} 23. Qc2 {[%clk 0:01:18]}  h6 {[%clk 0:00:48]} 24. Qe2 {[%clk 0:01:13]}  Qb7 {[%clk 0:00:41]} 25. Nf2 {[%clk 0:01:10]}  Rc8 {[%clk 0:00:36]} 26. Rh4 {[%clk 0:01:10]}  cxd4 {[%clk 0:00:33]} 27. exd4 {[%clk 0:01:09]}  b5 {[%clk 0:00:30]} 28. Ng4 {[%clk 0:01:07]}  Kh7 {[%clk 0:00:28]} 29. Qe3 {[%clk 0:01:02]}  Nc4 {[%clk 0:00:22]} 30. Qf4 {[%clk 0:01:02]}  Kg8 {[%clk 0:00:18]} 31. b3 {[%clk 0:01:00]}  Na5 {[%clk 0:00:16]} 32. Qxd6 {[%clk 0:00:59]}  Rxc3 {[%clk 0:00:14]} 33. Qd8+ {[%clk 0:00:49]}  Kh7 {[%clk 0:00:14]} 34. Qxa5 {[%clk 0:00:45]} 1-0


[Site "https://www.chess.com"]

[Event "Titled Tuesday Blitz March 14 Early 2023"]
[White "Cheng, Xiao"]
[Black "Torres Dominguez, David"]
[WhiteFideId "2022915"]
[BlackFideId "2220857"]
[WhiteElo "2475"]
[BlackElo "1999"]
[Result "0-1"]
[Round "08"]
[TimeControl "180+2"]
[Date "2023.03.14"]
[WhiteClock "0:01:51"]
[BlackClock "0:00:47"]

1. e4 {[%clk 0:02:56]}  e5 {[%clk 0:02:56]} 2. Nf3 {[%clk 0:02:55]}  Nc6 {[%clk 0:02:56]} 3. d4 {[%clk 0:02:54]}  exd4 {[%clk 0:02:56]} 4. Bc4 {[%clk 0:02:53]}  Bc5 {[%clk 0:02:55]} 5. c3 {[%clk 0:02:49]}  Nf6 {[%clk 0:02:55]} 6. e5 {[%clk 0:02:48]}  d5 {[%clk 0:02:53]} 7. Bb5 {[%clk 0:02:48]}  Ne4 {[%clk 0:02:54]} 8. cxd4 {[%clk 0:02:48]}  Bb6 {[%clk 0:02:54]} 9. O-O {[%clk 0:02:46]}  Bg4 {[%clk 0:02:52]} 10. Be3 {[%clk 0:02:46]}  O-O {[%clk 0:02:37]} 11. Be2 {[%clk 0:02:45]}  f6 {[%clk 0:02:32]} 12. Nc3 {[%clk 0:02:41]}  fxe5 {[%clk 0:02:07]} 13. Nxe5 {[%clk 0:02:37]}  Nxe5 {[%clk 0:01:56]} 14. Bxg4 {[%clk 0:02:32]}  Nxg4 {[%clk 0:01:50]} 15. Qxg4 {[%clk 0:02:33]}  Nxc3 {[%clk 0:01:26]} 16. bxc3 {[%clk 0:02:34]}  Qf6 {[%clk 0:01:24]} 17. Rab1 {[%clk 0:02:28]}  Qf7 {[%clk 0:01:17]} 18. Rb5 {[%clk 0:02:15]}  c6 {[%clk 0:01:16]} 19. Rb3 {[%clk 0:02:13]}  Rae8 {[%clk 0:01:14]} 20. a4 {[%clk 0:02:12]}  Rxe3 {[%clk 0:01:07]} 21. h4 {[%clk 0:02:03]}  Re4 {[%clk 0:01:04]} 22. Qg3 {[%clk 0:02:00]}  Bc7 {[%clk 0:01:00]} 23. Qh3 {[%clk 0:01:58]}  Qxf2+ {[%clk 0:00:48]} 24. Rxf2 {[%clk 0:01:50]}  Re1+ {[%clk 0:00:47]} 25. Rf1 {[%clk 0:01:51]}  Rexf1# {[%clk 0:00:47]} 0-1


[Site "https://www.chess.com"]

[Event "Titled Tuesday Blitz March 14 Early 2023"]
[White "Garcia Pantoja, Roberto"]
[Black "Bas Mas, Jose Joaquin"]
[WhiteFideId "3509265"]
[BlackFideId "22219064"]
[WhiteElo "2544"]
[BlackElo "2233"]
[Result "1-0"]
[Round "08"]
[TimeControl "180+2"]
[Date "2023.03.14"]
[WhiteClock "0:00:30"]
[BlackClock "0:00:16"]

1. e4 {[%clk 0:03:00]}  e6 {[%clk 0:02:59]} 2. d4 {[%clk 0:03:00]}  d5 {[%clk 0:03:00]} 3. Nc3 {[%clk 0:03:01]}  Nf6 {[%clk 0:02:59]} 4. e5 {[%clk 0:03:02]}  Nfd7 {[%clk 0:02:59]} 5. Nce2 {[%clk 0:03:03]}  c5 {[%clk 0:02:58]} 6. c3 {[%clk 0:03:03]}  Nc6 {[%clk 0:02:59]} 7. Nf3 {[%clk 0:03:02]}  Be7 {[%clk 0:02:54]} 8. Nf4 {[%clk 0:03:01]}  O-O {[%clk 0:02:53]} 9. Bd3 {[%clk 0:02:55]}  a5 {[%clk 0:02:39]} 10. h4 {[%clk 0:02:53]}  h6 {[%clk 0:02:14]} 11. Bb1 {[%clk 0:02:41]}  Re8 {[%clk 0:02:04]} 12. Rh3 {[%clk 0:02:30]}  cxd4 {[%clk 0:02:02]} 13. cxd4 {[%clk 0:02:28]}  Nf8 {[%clk 0:01:54]} 14. Nh5 {[%clk 0:02:05]}  f5 {[%clk 0:01:31]} 15. Rg3 {[%clk 0:01:32]}  g6 {[%clk 0:01:30]} 16. Bxh6 {[%clk 0:01:29]}  Kh7 {[%clk 0:01:31]} 17. Bxf8 {[%clk 0:01:22]}  Rxf8 {[%clk 0:01:30]} 18. Nf4 {[%clk 0:01:22]}  Qe8 {[%clk 0:01:24]} 19. Nxg6 {[%clk 0:01:16]}  Rg8 {[%clk 0:01:24]} 20. Nxe7 {[%clk 0:01:13]}  Rxg3 {[%clk 0:01:21]} 21. fxg3 {[%clk 0:01:09]}  Nxe7 {[%clk 0:01:19]} 22. Bd3 {[%clk 0:01:07]}  Bd7 {[%clk 0:01:18]} 23. Ng5+ {[%clk 0:01:06]}  Kg7 {[%clk 0:01:17]} 24. Rc1 {[%clk 0:01:03]}  Rc8 {[%clk 0:01:12]} 25. Rxc8 {[%clk 0:01:02]}  Nxc8 {[%clk 0:01:07]} 26. Qc2 {[%clk 0:01:01]}  Qd8 {[%clk 0:01:02]} 27. Qc5 {[%clk 0:00:50]}  b6 {[%clk 0:01:01]} 28. Qc3 {[%clk 0:00:50]}  Ne7 {[%clk 0:01:01]} 29. Kf2 {[%clk 0:00:47]}  Qc8 {[%clk 0:00:53]} 30. Nh3 {[%clk 0:00:45]}  Qxc3 {[%clk 0:00:46]} 31. bxc3 {[%clk 0:00:45]}  b5 {[%clk 0:00:46]} 32. a3 {[%clk 0:00:43]}  Ng8 {[%clk 0:00:44]} 33. Nf4 {[%clk 0:00:43]}  Nh6 {[%clk 0:00:44]} 34. Be2 {[%clk 0:00:43]}  Kf7 {[%clk 0:00:43]} 35. Ke3 {[%clk 0:00:42]}  Ke7 {[%clk 0:00:44]} 36. Kd2 {[%clk 0:00:42]}  Be8 {[%clk 0:00:44]} 37. Nd3 {[%clk 0:00:37]}  Bg6 {[%clk 0:00:38]} 38. Nf2 {[%clk 0:00:37]}  Be8 {[%clk 0:00:31]} 39. g4 {[%clk 0:00:37]}  fxg4 {[%clk 0:00:30]} 40. Bxg4 {[%clk 0:00:33]}  Bg6 {[%clk 0:00:29]} 41. Be2 {[%clk 0:00:32]}  Be8 {[%clk 0:00:27]} 42. g4 {[%clk 0:00:31]}  Kf7 {[%clk 0:00:25]} 43. Bd3 {[%clk 0:00:31]}  Ke7 {[%clk 0:00:25]} 44. Ke3 {[%clk 0:00:31]}  Nf7 {[%clk 0:00:21]} 45. Kf4 {[%clk 0:00:31]}  Nh8 {[%clk 0:00:21]} 46. h5 {[%clk 0:00:30]}  Kf7 {[%clk 0:00:20]} 47. g5 {[%clk 0:00:30]}  Kg7 {[%clk 0:00:21]} 48. Kg4 {[%clk 0:00:30]}  Nf7 {[%clk 0:00:20]} 49. Nh3 {[%clk 0:00:30]}  Bd7 {[%clk 0:00:16]} 50. Nf4 {[%clk 0:00:30]} 1-0


[Site "https://www.chess.com"]

[Event "Titled Tuesday Blitz March 14 Early 2023"]
[White "Fathy, Elameir"]
[Black "Odegov, Artem"]
[WhiteFideId "10600396"]
[BlackFideId "34183644"]
[WhiteElo "2311"]
[BlackElo "2300"]
[Result "0-1"]
[Round "08"]
[TimeControl "180+2"]
[Date "2023.03.14"]
[WhiteClock "0:00:02"]
[BlackClock "0:01:58"]

1. d4 {[%clk 0:02:53]}  d5 {[%clk 0:02:58]} 2. c4 {[%clk 0:02:47]}  e6 {[%clk 0:02:58]} 3. Nf3 {[%clk 0:02:46]}  c5 {[%clk 0:02:58]} 4. cxd5 {[%clk 0:02:45]}  exd5 {[%clk 0:02:59]} 5. g3 {[%clk 0:02:46]}  Nc6 {[%clk 0:02:59]} 6. Bg2 {[%clk 0:02:46]}  Nf6 {[%clk 0:03:00]} 7. O-O {[%clk 0:02:46]}  Be7 {[%clk 0:03:00]} 8. dxc5 {[%clk 0:02:47]}  Bxc5 {[%clk 0:03:01]} 9. a3 {[%clk 0:02:46]}  a6 {[%clk 0:03:01]} 10. b4 {[%clk 0:02:44]}  Bb6 {[%clk 0:03:00]} 11. Nc3 {[%clk 0:02:44]}  O-O {[%clk 0:03:00]} 12. Bg5 {[%clk 0:02:33]}  d4 {[%clk 0:02:58]} 13. Ne4 {[%clk 0:02:33]}  Re8 {[%clk 0:02:58]} 14. Nfd2 {[%clk 0:02:18]}  Bf5 {[%clk 0:02:55]} 15. Nxf6+ {[%clk 0:01:53]}  gxf6 {[%clk 0:02:55]} 16. Bh6 {[%clk 0:01:54]}  Bg6 {[%clk 0:02:49]} 17. Rc1 {[%clk 0:01:41]}  Rc8 {[%clk 0:02:36]} 18. Nc4 {[%clk 0:01:19]}  Ba7 {[%clk 0:02:34]} 19. Re1 {[%clk 0:01:07]}  b5 {[%clk 0:02:27]} 20. Nb2 {[%clk 0:01:00]}  Ne5 {[%clk 0:02:24]} 21. Qd2 {[%clk 0:00:22]}  Nc4 {[%clk 0:02:18]} 22. Nxc4 {[%clk 0:00:21]}  bxc4 {[%clk 0:02:19]} 23. Qf4 {[%clk 0:00:20]}  c3 {[%clk 0:02:13]} 24. Bb7 {[%clk 0:00:09]}  Rc7 {[%clk 0:02:11]} 25. Bxa6 {[%clk 0:00:09]}  Re4 {[%clk 0:02:10]} 26. Qf3 {[%clk 0:00:07]}  Re6 {[%clk 0:02:08]} 27. Bd3 {[%clk 0:00:06]}  Bb6 {[%clk 0:02:04]} 28. Bf4 {[%clk 0:00:06]}  Ra7 {[%clk 0:02:04]} 29. Bxg6 {[%clk 0:00:03]}  hxg6 {[%clk 0:02:04]} 30. Red1 {[%clk 0:00:01]}  Rxa3 {[%clk 0:02:03]} 31. h4 {[%clk 0:00:01]}  Qa8 {[%clk 0:02:00]} 32. Rd3 {[%clk 0:00:01]}  Qxf3 {[%clk 0:01:59]} 33. exf3 {[%clk 0:00:02]}  Rb3 {[%clk 0:01:58]} 0-1


[Site "https://www.chess.com"]

[Event "Titled Tuesday Blitz March 14 Early 2023"]
[White "Jaskolka, Tomasz"]
[Black "Sarkar, Justin"]
[WhiteFideId "1170791"]
[BlackFideId "2010011"]
[WhiteElo "2155"]
[BlackElo "2189"]
[Result "1-0"]
[Round "08"]
[TimeControl "180+2"]
[Date "2023.03.14"]
[WhiteClock "0:00:20"]
[BlackClock "0:00:01"]

1. d4 {[%clk 0:02:52]}  Nf6 {[%clk 0:02:18]} 2. Bf4 {[%clk 0:02:48]}  b6 {[%clk 0:01:53]} 3. e3 {[%clk 0:02:38]}  Bb7 {[%clk 0:01:53]} 4. c3 {[%clk 0:02:38]}  e6 {[%clk 0:01:51]} 5. Nd2 {[%clk 0:02:38]}  Bd6 {[%clk 0:01:49]} 6. Bg3 {[%clk 0:02:38]}  O-O {[%clk 0:01:47]} 7. Ngf3 {[%clk 0:02:36]}  Re8 {[%clk 0:01:40]} 8. Bd3 {[%clk 0:02:35]}  Bf8 {[%clk 0:01:36]} 9. Qe2 {[%clk 0:02:34]}  d5 {[%clk 0:01:26]} 10. Ne5 {[%clk 0:02:30]}  Nfd7 {[%clk 0:01:10]} 11. f4 {[%clk 0:02:29]}  Nxe5 {[%clk 0:01:08]} 12. fxe5 {[%clk 0:02:29]}  a5 {[%clk 0:01:03]} 13. O-O {[%clk 0:02:18]}  g6 {[%clk 0:00:58]} 14. Qf3 {[%clk 0:02:10]}  Qd7 {[%clk 0:00:49]} 15. Rf2 {[%clk 0:01:54]}  Ba6 {[%clk 0:00:46]} 16. Bc2 {[%clk 0:01:54]}  c5 {[%clk 0:00:34]} 17. h4 {[%clk 0:01:33]}  Nc6 {[%clk 0:00:29]} 18. h5 {[%clk 0:01:31]}  Bh6 {[%clk 0:00:24]} 19. Bf4 {[%clk 0:01:28]}  g5 {[%clk 0:00:10]} 20. Qg4 {[%clk 0:01:18]}  Qe7 {[%clk 0:00:07]} 21. Nf3 {[%clk 0:01:04]}  Kh8 {[%clk 0:00:05]} 22. Bh2 {[%clk 0:00:46]}  Rg8 {[%clk 0:00:04]} 23. e4 {[%clk 0:00:40]}  Raf8 {[%clk 0:00:03]} 24. exd5 {[%clk 0:00:39]}  exd5 {[%clk 0:00:03]} 25. Qf5 {[%clk 0:00:39]}  f6 {[%clk 0:00:03]} 26. e6 {[%clk 0:00:23]}  Bc8 {[%clk 0:00:02]} 27. Bd6 {[%clk 0:00:22]}  Bxe6 {[%clk 0:00:02]} 28. Bxe7 {[%clk 0:00:19]}  Bxf5 {[%clk 0:00:02]} 29. Bxf8 {[%clk 0:00:20]}  Bxc2 {[%clk 0:00:01]} 30. Bxh6 {[%clk 0:00:20]} 1-0


[Site "https://www.chess.com"]